fUST/lending_fUST_20250813
["ID","MTS","AMOUNT","RATE_DAILY","PERIOD"]
[378801701,1755023439484,-151.0,0.00018918,2]
[378801702,1755023439493,-648.305163,0.00018918,2]
[378801703,1755023439503,-151.0,0.00018918,2]
[378801704,1755023439513,-151.0,0.00018918,2]
[378801705,1755023439522,-151.0,0.00018918,2]
[378801706,1755023439531,-151.0,0.00018918,2]
[378801707,1755023439540,-151.0,0.00018918,2]
[378801708,1755023439549,-151.0,0.00018918,2]
[378801709,1755023439558,-151.0,0.00018918,2]
[378801710,1755023439752,-151.0,0.00018918,2]
[378801711,1755023439764,-151.0,0.00018918,2]
[378801712,1755023439774,-160.02631238,0.00018918,2]
[378801713,1755023439783,-151.0,0.00018918,2]
[378801714,1755023439793,-151.0,0.00018918,2]
[378801715,1755023439802,-151.0,0.00018918,2]
[378801716,1755023439813,-151.0,0.00018918,2]
[378801717,1755023439822,-151.0,0.00018918,2]
[378801718,1755023439832,-500.0,0.00018918,2]
[378801719,1755023439841,-151.0,0.00018918,2]
[378801720,1755023439850,-500.0,0.00018918,2]
[378801721,1755023439860,-151.0,0.00018918,2]
[378801722,1755023439870,-500.0,0.00018918,2]
[378801723,1755023439881,-151.0,0.00018918,2]
[378801724,1755023439891,-500.0,0.00018918,2]
[378801725,1755023439901,-500.0,0.00018918,2]
[378801726,1755023439911,-500.0,0.00018918,2]
[378801728,1755023439922,-500.0,0.00018918,2]
[378801729,1755023439931,-151.0,0.00018918,2]
[378801731,1755023439941,-500.0,0.00018918,2]
[378801732,1755023439950,-151.0,0.00018918,2]
[378801733,1755023439960,-500.0,0.00018918,2]
[378801734,1755023439970,-151.0,0.00018918,2]
[378801735,1755023439979,-151.0,0.00018918,2]
[378801736,1755023439989,-500.0,0.00018918,2]
[378801739,1755023440005,-151.0,0.00018918,2]
[378801741,1755023440020,-500.0,0.00018918,2]
[378801743,1755023440031,-151.0,0.00018918,2]
[378801744,1755023440041,-500.0,0.00018918,2]
[378801746,1755023440051,-151.0,0.00018918,2]
[378801747,1755023440062,-500.0,0.00018918,2]
[378801748,1755023440072,-151.0,0.00018918,2]
[378801749,1755023440082,-500.0,0.00018918,2]
[378801750,1755023440092,-151.0,0.00018918,2]
[378801751,1755023440102,-500.0,0.00018918,2]
[378801752,1755023440113,-151.0,0.00018918,2]
[378801753,1755023440125,-500.0,0.00018918,2]
[378801754,1755023440136,-151.0,0.00018918,2]
[378801755,1755023440147,-500.0,0.00018918,2]
[378801756,1755023440157,-151.0,0.00018918,2]
[378801758,1755023440168,-151.0,0.00018918,2]
[378801759,1755023440178,-151.0,0.00018918,2]
[378801760,1755023440188,-151.0,0.00018918,2]
[378801761,1755023440198,-151.0,0.00018918,2]
[378801762,1755023440208,-151.0,0.00018918,2]
[378801763,1755023440218,-500.0,0.00018918,2]
[378801764,1755023440228,-842.44,0.00018919,3]
[378801765,1755023440239,-421.22,0.00018919,3]
[378801766,1755023440248,-210.61,0.00018919,3]
[378801767,1755023440259,-631.85,0.00018919,3]
[378801768,1755023440269,-167.17,0.00018919,3]
[378801769,1755023440279,-501.55,0.00018919,3]
[378801770,1755023440288,-500.0,0.00018928,2]
[378801771,1755023440298,-234.23966781,0.00018928,2]
[378801772,1755023440309,-366879.00684846,0.00018929,2]
[378801773,1755023440320,-154.54553138,0.00018955,2]
[378801775,1755023440330,-151.0,0.00018955,2]
[378801777,1755023440341,-151.0,0.00018955,2]
[378801779,1755023440351,-151.0,0.00018955,2]
[378801781,1755023440360,-151.0,0.00018955,2]
[378801783,1755023440370,-151.0,0.00018955,2]
[378801785,1755023440383,-151.0,0.00018955,2]
[378801786,1755023440393,-151.0,0.00018955,2]
[378801787,1755023440402,-198.0,0.00018955,2]
[378801788,1755023440414,-895.0,0.00018955,2]
[378801789,1755023440424,-1566.0,0.00018955,2]
[378801790,1755023440434,-277.08633534,0.00018955,2]
[378801791,1755023440444,-151.0,0.00018955,2]
[378801792,1755023440455,-205.99700286,0.00018955,2]
[378801793,1755023440465,-151.0,0.00018955,2]
[378801794,1755023440475,-500.0,0.00018973,2]
[378801795,1755023440485,-258.20539447,0.00018973,2]
[378801796,1755023440495,-500.0,0.00018973,2]
[378801797,1755023440505,-500.0,0.00018973,2]
[378801798,1755023440515,-484.81535733,0.00018973,2]
[378801799,1755023440524,-500.0,0.00018973,2]
[378801800,1755023440534,-500.0,0.00018973,2]
[378801801,1755023440543,-500.0,0.00018973,2]
[378801802,1755023440553,-500.0,0.00018973,2]
[378801803,1755023440562,-500.0,0.00018973,2]
[378801804,1755023440571,-500.0,0.00018973,2]
[378801805,1755023440581,-500.0,0.00018973,2]
[378801806,1755023440591,-500.0,0.00018973,2]
[378801807,1755023440600,-500.0,0.00018973,2]
[378801808,1755023440610,-500.0,0.00018973,2]
[378801809,1755023440620,-500.0,0.00018973,2]
[378801810,1755023440630,-500.0,0.00018973,2]
[378801811,1755023440639,-500.0,0.00018973,2]
[378801812,1755023440648,-500.0,0.00018973,2]
[378801813,1755023440658,-500.0,0.00018973,2]
[378801814,1755023440667,-500.0,0.00018973,2]
[378801815,1755023440680,-500.0,0.00018973,2]
[378801816,1755023440696,-500.0,0.00018973,2]
[378801817,1755023440706,-500.0,0.00018973,2]
[378801819,1755023440715,-500.0,0.00018973,2]
[378801820,1755023440724,-543.59259108,0.00018973,2]
[378801821,1755023440734,-500.0,0.00018973,2]
[378801822,1755023440743,-678.21292927,0.00018998,2]
[378801823,1755023440754,-215.52532928,0.00019068,2]
[378801824,1755023440763,-156.45287914,0.00019105,2]
[378801825,1755023440772,-217.0,0.00019127,2]
[378801826,1755023440782,-217.0,0.0001917,2]
[378801827,1755023440791,-276.4,0.00019175,2]
[378801828,1755023440802,-151.0,0.00019178,2]
[378801829,1755023440820,-276.25127351,0.00019178,2]
[378801830,1755023440829,-1514.2216494,0.00019178,2]
[378801831,1755023440839,-5000.0,0.00019178,2]
[378801832,1755023440848,-666.0,0.00019178,2]
[378801833,1755023440858,-150.0,0.00019189,2]
[378801834,1755023440867,-150.0,0.00019189,2]
[378801835,1755023440877,-150.028,0.00019189,2]
[378801836,1755023440888,-150.101,0.00019189,2]
[378801837,1755023440897,-150.0,0.00019189,2]
[378801838,1755023440907,-245.048,0.00019189,2]
[378801839,1755023440916,-151.0,0.00019229,2]
[378801840,1755023440925,-895.0,0.00019229,2]
[378801841,1755023440935,-1566.0,0.00019229,2]
[378801842,1755023440944,-151.0,0.00019229,2]
[378801843,1755023440954,-460.0,0.00019229,2]
[378801844,1755023440963,-160.0,0.0001929,2]
[378801845,1755023440972,-217.0,0.00019319,2]
[378801846,1755023440982,-971.0,0.0001932,2]
[378801847,1755023440991,-636.0,0.0001932,2]
[378801848,1755023441000,-2151.0,0.0001932,2]
[378801849,1755023441010,-151.0,0.00019329,2]
[378801850,1755023441020,-151.0,0.00019329,2]
[378801851,1755023441029,-151.0,0.00019329,2]
[378801852,1755023441038,-151.0,0.00019329,2]
[378801853,1755023441048,-151.0,0.00019329,2]
[378801854,1755023441058,-151.0,0.00019329,2]
[378801855,1755023441067,-1734.570859,0.00019329,2]
[378801856,1755023441077,-1734.570859,0.00019329,2]
[378801857,1755023441086,-1734.570859,0.00019329,2]
[378801858,1755023441099,-1734.570859,0.00019329,2]
[378801859,1755023441109,-3017.534926,0.00019329,2]
[378801860,1755023441119,-167.637095,0.00019329,2]
[378801861,1755023441129,-151.0,0.00019329,2]
[378801862,1755023441138,-151.0,0.00019329,2]
[378801863,1755023441148,-151.0,0.00019329,2]
[378801864,1755023441158,-151.0,0.00019329,2]
[378801865,1755023441167,-151.0,0.00019329,2]
[378801866,1755023441176,-151.0,0.00019329,2]
[378801867,1755023441186,-394.431115,0.00019329,2]
[378801868,1755023441195,-394.431115,0.00019329,2]
[378801869,1755023441205,-151.0,0.00019329,2]
[378801870,1755023441214,-151.0,0.00019329,2]
[378801871,1755023441224,-151.0,0.00019329,2]
[378801872,1755023441234,-151.0,0.00019329,2]
[378801873,1755023441243,-100000.0,0.00019329,2]
[378801874,1755023441252,-156.45287914,0.00019354,2]
[378801875,1755023441261,-564.82436377,0.00019373,2]
[378801876,1755023441271,-500.0,0.00019373,2]
[378801877,1755023441280,-168.0,0.00019379,2]
[378801878,1755023441289,-250.0,0.00019383,2]
[378801879,1755023441299,-645.0,0.000194,2]
[378801880,1755023441308,-160.0,0.00019401,2]
[378801881,1755023441317,-160.35483779,0.00019401,2]
[378801882,1755023441327,-166.0,0.00019401,2]
[378801883,1755023441336,-166.0,0.00019401,2]
[378801884,1755023441345,-166.0,0.00019401,2]
[378801885,1755023441355,-166.0,0.00019401,2]
[378801886,1755023441364,-166.0,0.00019401,2]
[378801887,1755023441373,-166.0,0.00019401,2]
[378801888,1755023441383,-172.0,0.00019401,2]
[378801889,1755023441392,-1760.0,0.00019401,2]
[378801890,1755023441402,-1760.0,0.00019401,2]
[378801891,1755023441413,-1760.0,0.00019401,2]
[378801892,1755023441423,-1760.0,0.00019401,2]
[378801893,1755023441432,-1760.0,0.00019401,2]
[378801894,1755023441442,-1760.0,0.00019401,2]
[378801895,1755023441451,-1760.0,0.00019401,2]
[378801896,1755023441462,-325.0,0.00019401,2]
[378801897,1755023441471,-325.0,0.00019401,2]
[378801898,1755023441480,-325.0,0.00019401,2]
[378801899,1755023441490,-325.0,0.00019401,2]
[378801900,1755023441500,-325.0,0.00019401,2]
[378801901,1755023441509,-325.0,0.00019401,2]
[378801902,1755023441518,-325.0,0.00019401,2]
[378801903,1755023441528,-325.0,0.00019401,2]
[378801904,1755023441537,-153.32695641,0.00019401,2]
[378801905,1755023441547,-217.0,0.00019426,2]
[378801906,1755023441556,-217.0,0.00019439,2]
[378801907,1755023441565,-151.35259151,0.00019452,2]
[378801908,1755023441576,-276.4,0.00019457,2]
[378801909,1755023441585,-232.0176383,0.00019458,2]
[378801910,1755023441595,-160.0,0.00019458,2]
[378801911,1755023441604,-160.0,0.00019459,2]
[378801912,1755023441613,-216.70963917,0.00019459,2]
[378801913,1755023441622,-160.0,0.00019459,2]
[378801914,1755023441632,-160.0,0.00019459,2]
[378801915,1755023441642,-461.76100612,0.00019459,2]
[378801916,1755023441651,-528.03329096,0.00019459,2]
[378801917,1755023441660,-417.15472785,0.00019459,2]
[378801918,1755023441670,-160.0,0.00019459,2]
[378801919,1755023441679,-843.25559725,0.00019459,2]
[378801920,1755023441689,-168.0,0.00019496,2]
[378801921,1755023441698,-1002.691653,0.000195,2]
[378801922,1755023441708,-151.0,0.00019503,2]
[378801923,1755023441717,-895.0,0.00019503,2]
[378801924,1755023441727,-1566.0,0.00019503,2]
[378801925,1755023441737,-151.0,0.00019503,2]
[378801926,1755023441746,-217.0,0.00019513,2]
[378801927,1755023441757,-500.0,0.00019521,2]
[378801928,1755023441767,-1000.0,0.00019521,2]
[378801929,1755023441777,-962.15766572,0.00019521,2]
[378801930,1755023441786,-1000.0,0.00019521,2]
[378801931,1755023441797,-520.92936452,0.00019521,2]
[378801932,1755023441806,-1000.0,0.00019521,2]
[378801933,1755023441816,-309.01130451,0.00019521,2]
[378801934,1755023441825,-1000.0,0.00019521,2]
[378801935,1755023441836,-1000.0,0.00019521,2]
[378801936,1755023441845,-617.91074562,0.00019521,2]
[378801937,1755023441854,-1000.0,0.00019521,2]
[378801938,1755023441863,-1000.0,0.00019521,2]
[378801939,1755023441872,-1000.0,0.00019521,2]
[378801940,1755023441882,-1000.0,0.00019521,2]
[378801941,1755023441891,-420.0,0.0001955,2]
[378801942,1755023441901,-168.0,0.00019561,2]
[378801943,1755023441911,-168.0,0.00019577,2]
[378801944,1755023441920,-151.0,0.000196,2]
[378801945,1755023441930,-156.45287914,0.00019604,2]
[378801946,1755023441939,-151.0,0.00019604,2]
[378801947,1755023441949,-19453.38593127,0.000197,2]
[378801948,1755023441958,-158.790613,0.000197,2]
[378801949,1755023441968,-151.0,0.000197,2]
[378801950,1755023441977,-151.0,0.000197,2]
[378801951,1755023441987,-183.97517,0.000197,2]
[378801952,1755023441996,-183.97517,0.000197,2]
[378801953,1755023442005,-151.0,0.000197,2]
[378801954,1755023442015,-151.0,0.000197,2]
[378801955,1755023442025,-1734.570859,0.000197,2]
[378801956,1755023442034,-1734.570859,0.000197,2]
[378801957,1755023442043,-151.0,0.000197,2]
[378801958,1755023442059,-151.0,0.000197,2]
[378801959,1755023442070,-365.454494,0.000197,2]
[378801960,1755023442080,-365.454494,0.000197,2]
[378801961,1755023442090,-500.0,0.000197,2]
[378801962,1755023442100,-151.0,0.000197,2]
[378801963,1755023442109,-151.0,0.000197,2]
[378801964,1755023442118,-151.0,0.000197,2]
[378801965,1755023442129,-151.0,0.000197,2]
[378801966,1755023442139,-151.0,0.000197,2]
[378801967,1755023442147,-151.0,0.000197,2]
[378801968,1755023442157,-151.0,0.000197,2]
[378801969,1755023442166,-151.0,0.000197,2]
[378801970,1755023442176,-263.758689,0.000197,2]
[378801971,1755023442185,-151.0,0.000197,2]
[378801972,1755023442195,-154.5425,0.000197,2]
[378801973,1755023442205,-500.0,0.000197,2]
[378801974,1755023442215,-1267.323235,0.000197,2]
[378801975,1755023442224,-1267.323235,0.000197,2]
[378801976,1755023442234,-394.431115,0.000197,2]
[378801977,1755023442243,-394.431115,0.000197,2]
[378801978,1755023442253,-151.0,0.000197,2]
[378801979,1755023442262,-151.0,0.000197,2]
[378801980,1755023442272,-151.0,0.000197,2]
[378801981,1755023442282,-276.4,0.0001974,2]
[378801982,1755023442291,-310.0,0.00019749,2]
[378801983,1755023442302,-198.0,0.00019777,2]
[378801984,1755023442312,-895.0,0.00019777,2]
[378801985,1755023442321,-1566.0,0.00019777,2]
[378801986,1755023442331,-295.32751794,0.00019777,2]
[378801987,1755023442341,-1688.618435,0.0001978,5]
[378801988,1755023442350,-4000.0,0.00019782,2]
[378801989,1755023442359,-151.0,0.000198,2]
[378801990,1755023442369,-151.0,0.000198,2]
[378801991,1755023442379,-151.0,0.000198,2]
[378801992,1755023442390,-151.0,0.000198,2]
[378801993,1755023442399,-1734.570859,0.000198,2]
[378801994,1755023442410,-1734.570859,0.000198,2]
[378801995,1755023442422,-1000.0,0.000198,5]
[378801996,1755023442431,-151.0,0.000198,2]
[378801997,1755023442442,-217.0,0.00019806,2]
[378801998,1755023442452,-1200.0,0.00019812,2]
[378801999,1755023442462,-151.0,0.00019812,2]
[378802000,1755023442471,-151.0,0.00019812,2]
[378802001,1755023442481,-183.97517,0.00019812,2]
[378802002,1755023442493,-183.97517,0.00019812,2]
[378802003,1755023442502,-1000.0,0.0001982,5]
[378802004,1755023442512,-1000.0,0.0001984,5]
[378802005,1755023442522,-156.45287914,0.00019853,2]
[378802006,1755023442531,-1000.0,0.0001986,5]
[378802007,1755023442541,-1401.986761,0.00019863,2]
[378802008,1755023442553,-365.454494,0.0001988,2]
[378802009,1755023442562,-365.454494,0.0001988,2]
[378802010,1755023442572,-151.0,0.0001988,2]
[378802011,1755023442581,-151.0,0.0001988,2]
[378802012,1755023442590,-1000.0,0.0001988,5]
[378802013,1755023442599,-151.0,0.0001988,2]
[378802014,1755023442608,-151.0,0.0001988,2]
[378802015,1755023442618,-151.0,0.0001988,2]
[378802016,1755023442627,-217.0,0.00019894,2]
[378802017,1755023442637,-151.0,0.000199,2]
[378802018,1755023442647,-151.0,0.000199,2]
[378802019,1755023442656,-151.0,0.000199,2]
[378802020,1755023442667,-151.0,0.000199,2]
[378802021,1755023442676,-183.97517,0.000199,2]
[378802022,1755023442686,-183.97517,0.000199,2]
[378802023,1755023442696,-151.0,0.000199,2]
[378802024,1755023442705,-151.0,0.000199,2]
[378802025,1755023442715,-151.0,0.000199,2]
[378802026,1755023442724,-151.0,0.000199,2]
[378802027,1755023442734,-1734.570859,0.000199,2]
[378802028,1755023442743,-1734.570859,0.000199,2]
[378802029,1755023442752,-1734.570859,0.000199,2]
[378802030,1755023442762,-1734.570859,0.000199,2]
[378802031,1755023442771,-151.0,0.000199,2]
[378802032,1755023442781,-151.0,0.000199,2]
[378802033,1755023442791,-151.0,0.000199,2]
[378802034,1755023442801,-151.0,0.000199,2]
[378802035,1755023442811,-151.0,0.000199,2]
[378802036,1755023442821,-151.0,0.000199,2]
[378802037,1755023442831,-151.0,0.000199,2]
[378802038,1755023442840,-151.0,0.000199,2]
[378802039,1755023442849,-151.0,0.000199,2]
[378802040,1755023442859,-151.0,0.000199,2]
[378802041,1755023442868,-365.454494,0.000199,2]
[378802042,1755023442878,-365.454494,0.000199,2]
[378802043,1755023442887,-195.203855,0.000199,2]
[378802044,1755023442896,-195.203855,0.000199,2]
[378802045,1755023442906,-151.0,0.000199,2]
[378802046,1755023442915,-151.0,0.000199,2]
[378802047,1755023442924,-154.194601,0.000199,2]
[378802048,1755023442934,-1000.0,0.000199,5]
[378802049,1755023442943,-151.0,0.000199,2]
[378802050,1755023442952,-151.0,0.000199,2]
[378802051,1755023442962,-151.0,0.000199,2]
[378802052,1755023442971,-151.0,0.000199,2]
[378802053,1755023442981,-151.0,0.000199,2]
[378802054,1755023442991,-151.0,0.000199,2]
[378802055,1755023443001,-151.0,0.000199,2]
[378802056,1755023443010,-1267.323235,0.000199,2]
[378802057,1755023443020,-1267.323235,0.000199,2]
[378802058,1755023443030,-1267.323235,0.000199,2]
[378802060,1755023443039,-1267.323235,0.000199,2]
[378802061,1755023443049,-1267.323235,0.000199,2]
[378802062,1755023443059,-1267.323235,0.000199,2]
[378802063,1755023443068,-394.431115,0.000199,2]
[378802064,1755023443078,-394.431115,0.000199,2]
[378802065,1755023443088,-394.431115,0.000199,2]
[378802066,1755023443098,-394.431115,0.000199,2]
[378802067,1755023443108,-151.0,0.000199,2]
[378802068,1755023443118,-151.0,0.000199,2]
[378802070,1755023443130,-151.0,0.000199,2]
[378802071,1755023443140,-151.0,0.000199,2]
[378802072,1755023443151,-151.0,0.000199,2]
[378802074,1755023443160,-151.0,0.000199,2]
[378802076,1755023443171,-151.0,0.000199,2]
[378802078,1755023443181,-151.0,0.000199,2]
[378802080,1755023443191,-54939.45980471,0.000199,2]
[378802082,1755023443201,-1000.0,0.0001992,5]
[378802083,1755023443210,-1000.0,0.00019921,2]
[378802084,1755023443220,-1000.0,0.0001994,5]
[378802085,1755023443231,-10000.0,0.00019953,2]
[378802086,1755023443241,-178.922034,0.00019953,2]
[378802087,1755023443259,-151.0,0.00019953,2]
[378802089,1755023443269,-183.97517,0.00019953,2]
[378802090,1755023443279,-183.97517,0.00019953,2]
[378802091,1755023443289,-151.0,0.00019953,2]
[378802092,1755023443299,-1000.0,0.0001996,5]
[378802093,1755023443309,-5000.0,0.00019962,2]
[378802094,1755023443319,-153.124499,0.00019962,2]
[378802095,1755023443328,-151.0,0.00019962,2]
[378802096,1755023443338,-1734.570859,0.00019962,2]
[378802097,1755023443347,-1734.570859,0.00019962,2]
[378802098,1755023443359,-175.658017,0.00019962,2]
[378802099,1755023443369,-151.0,0.00019962,2]
[378802100,1755023443379,-365.454494,0.00019962,2]
[378802101,1755023443389,-365.454494,0.00019962,2]
[378802102,1755023443399,-195.203855,0.00019962,2]
[378802103,1755023443409,-151.0,0.00019962,2]
[378802104,1755023443421,-151.0,0.00019962,2]
[378802105,1755023443430,-151.0,0.00019962,2]
[378802106,1755023443440,-151.0,0.00019962,2]
[378802107,1755023443449,-500.32990521,0.00019973,2]
[378802108,1755023443461,-551.42356798,0.00019973,2]
[378802109,1755023443470,-500.0,0.00019973,2]
[378802110,1755023443480,-500.0,0.00019973,2]
[378802111,1755023443491,-502.76910957,0.00019973,2]
[378802112,1755023443501,-500.0,0.00019973,2]
[378802113,1755023443510,-500.0,0.00019973,2]
[378802114,1755023443520,-500.0,0.00019973,2]
[378802115,1755023443529,-500.0,0.00019973,2]
[378802116,1755023443539,-500.0,0.00019973,2]
[378802118,1755023443548,-500.0,0.00019973,2]
[378802120,1755023443557,-551.29892843,0.00019973,2]
[378802122,1755023443566,-584.15091993,0.00019973,2]
[378802123,1755023443575,-500.0,0.00019973,2]
[378802124,1755023443585,-500.0,0.00019973,2]
[378802125,1755023443594,-500.0,0.00019973,2]
[378802126,1755023443603,-160.09656799,0.00019973,2]
[378802127,1755023443612,-500.0,0.00019973,2]
[378802128,1755023443621,-500.0,0.00019973,2]
[378802129,1755023443630,-500.0,0.00019973,2]
[378802130,1755023443639,-500.0,0.00019973,2]
[378802137,1755023443792,-500.0,0.00019973,2]
[378802139,1755023443802,-500.51751135,0.00019973,2]
[378802141,1755023443811,-158.16316797,0.00019973,2]
[378802143,1755023443820,-500.0,0.00019973,2]
[378802145,1755023443830,-500.0,0.00019973,2]
[378802147,1755023443839,-500.0,0.00019973,2]
[378802149,1755023443848,-315.48092757,0.00019973,2]
[378802151,1755023443857,-158.49156836,0.00019973,2]
[378802153,1755023443866,-500.0,0.00019973,2]
[378802155,1755023443875,-500.0,0.00019973,2]
[378802157,1755023443884,-500.0,0.00019973,2]
[378802159,1755023443893,-500.0,0.00019973,2]
[378802161,1755023443902,-500.0,0.00019973,2]
[378802164,1755023443911,-500.0,0.00019973,2]
[378802166,1755023443920,-500.0,0.00019973,2]
[378802167,1755023443929,-500.0,0.00019973,2]
[378802168,1755023443939,-500.0,0.00019973,2]
[378802169,1755023443948,-500.0,0.00019973,2]
[378802170,1755023443958,-500.0,0.00019973,2]
[378802171,1755023443967,-500.0,0.00019973,2]
[378802172,1755023443976,-150.0,0.00019973,2]
[378802173,1755023443986,-500.0,0.00019973,2]
[378802174,1755023443996,-341.68386757,0.00019973,2]
[378802175,1755023444005,-500.0,0.00019973,2]
[378802176,1755023444014,-550.56182312,0.00019973,2]
[378802177,1755023444023,-507.43583334,0.00019973,2]
[378802178,1755023444032,-500.0,0.00019973,2]
[378802180,1755023444041,-500.0,0.00019973,2]
[378802181,1755023444050,-500.0,0.00019973,2]
[378802182,1755023444059,-500.0,0.00019973,2]
[378802183,1755023444068,-151.0,0.00019973,2]
[378802184,1755023444077,-183.97517,0.00019973,2]
[378802185,1755023444086,-183.97517,0.00019973,2]
[378802186,1755023444095,-151.0,0.00019973,2]
[378802187,1755023444105,-220.06376,0.00019973,2]
[378802188,1755023444114,-1734.570859,0.00019973,2]
[378802189,1755023444123,-1734.570859,0.00019973,2]
[378802190,1755023444133,-151.0,0.00019973,2]
[378802191,1755023444143,-151.0,0.00019973,2]
[378802192,1755023444152,-190.617263,0.00019973,2]
[378802193,1755023444161,-365.454494,0.00019973,2]
[378802194,1755023444170,-365.454494,0.00019973,2]
[378802195,1755023444179,-195.203855,0.00019973,2]
[378802196,1755023444188,-151.0,0.00019973,2]
[378802197,1755023444198,-151.0,0.00019973,2]
[378802198,1755023444207,-151.0,0.00019973,2]
[378802199,1755023444216,-151.0,0.00019973,2]
[378802200,1755023444226,-1267.323235,0.00019973,2]
[378802201,1755023444235,-1267.323235,0.00019973,2]
[378802202,1755023444244,-394.431115,0.00019973,2]
[378802203,1755023444253,-394.431115,0.00019973,2]
[378802204,1755023444263,-151.0,0.00019973,2]
[378802205,1755023444272,-202.438399,0.00019973,2]
[378802206,1755023444283,-151.0,0.00019973,2]
[378802207,1755023444295,-151.0,0.00019973,2]
[378802208,1755023444305,-151.0,0.00019974,2]
[378802209,1755023444314,-151.0,0.00019974,2]
[378802210,1755023444323,-1000.0,0.0001998,5]
[378802211,1755023444332,-160.0,0.00019995,3]
[378802212,1755023444342,-1360.0,0.0002,4]
[378802213,1755023444352,-7009.30053395,0.0002,2]
[378802214,1755023444362,-14404.56839384,0.0002,2]
[378802215,1755023444371,-56078.723895,0.0002,2]
[378802216,1755023444380,-364.17042047,0.0002,2]
[378802217,1755023444390,-12622.87158752,0.0002,2]
[378802218,1755023444399,-7238.15193035,0.0002,10]
[378802219,1755023444409,-12622.29479908,0.0002,2]
[378802220,1755023444420,-1001.32794902,0.0002,2]
[378802221,1755023444430,-8330.3750741,0.0002,2]
[378802222,1755023444439,-150.0,0.0002,2]
[378802223,1755023444448,-23000.0,0.0002,2]
[378802224,1755023444459,-560.72189562,0.0002,5]
[378802225,1755023444468,-68295.91092905,0.0002,2]
[378802226,1755023444478,-27747.31992152,0.0002,2]
[378802227,1755023444487,-500.0,0.0002,2]
[378802228,1755023444496,-8585.26650461,0.0002,20]
[378802229,1755023444505,-247.537711,0.0002,2]
[378802230,1755023444516,-183.97517,0.0002,2]
[378802231,1755023444526,-183.97517,0.0002,2]
[378802232,1755023444536,-183.97517,0.0002,2]
[378802233,1755023444545,-183.97517,0.0002,2]
[378802234,1755023444555,-183.97517,0.0002,2]
[378802235,1755023444565,-183.97517,0.0002,2]
[378802236,1755023444574,-183.97517,0.0002,2]
[378802237,1755023444583,-183.97517,0.0002,2]
[378802238,1755023444592,-183.97517,0.0002,2]
[378802239,1755023444601,-183.97517,0.0002,2]
[378802240,1755023444610,-151.0,0.0002,2]
[378802241,1755023444619,-151.0,0.0002,2]
[378802242,1755023444629,-151.0,0.0002,2]
[378802243,1755023444638,-151.0,0.0002,2]
[378802244,1755023444647,-254.0,0.0002,2]
[378802245,1755023444656,-2467.23996171,0.0002,2]
[378802246,1755023444665,-1734.570859,0.0002,2]
[378802247,1755023444676,-1734.570859,0.0002,2]
[378802248,1755023444685,-1734.570859,0.0002,2]